Workbook

Sheet PFP
A1: PROPOSTA FINANCEIRA DO PROJETO | J1: CODIGO:
J2: PFP
A3: NOME DA CONSULTORA:
A5: PROJETO: | F5: CONTRATANTE: | J5: BASE: Jul/2021
A6: Estudos e Projeto Básico da Adutora Agreste Potiguar, no Estado do Rio Grande do Norte | F6: CODEVASF (SEDE) | J6: PROP: Jul/2021 SINAPI/DF: Maio/2021 SICRO/NA: Jan/2021
A7: Base | B7: Cod2 | C7: Cod3 | D7: Categoria / Insumo | E7: Uni | F7: Qde | G7: CUD | H7: PU | I7: FatorK | J7: CT | K7: PT
A8: SICRO | B8: MO3 | C8: P0 | D8: Engenheiro coordenador (P8061) | E8: mês | F8: ='CRO1_Ins-Pro'!D5 -> 14 | G8: 16003.36 | H8: =ROUND(I8*G8,2) -> 23110.45 | I8: ='PFP2.3_FatorKc'!E36 -> 1.4441 | J8: =ROUND(F8*G8,2) -> 224047.04 | K8: =ROUND(F8*H8,2) -> 323546.3
A9: SICRO | B9: MO2 | C9: P1 | D9: Engenheiro sênior (P8067) | E9: mês | F9: ='CRO1_Ins-Pro'!D6 -> 48 | G9: 13560.49 | H9: 22989.1 | I9: ='PFP2.2_FatorKb'!$E$36 -> 1.6953 | J9: 650903.52 | K9: 1103476.8
A10: SICRO | B10: MO1 | C10: P2 | D10: Engenheiro pleno (P8066) | E10: mês | F10: ='CRO1_Ins-Pro'!D7 -> 48 | G10: 10307.29 | H10: =ROUND(I10*G10,2) -> 24341.7 | I10: ='PFP2.1_FatorKa'!$E$36 -> 2.3616 | J10: =ROUND(F10*G10,2) -> 494749.92 | K10: 1168401.6
A11: SICRO | B11: MO1 | C11: P3 | D11: Engenheiro júnior (P8065) | E11: mês | F11: ='CRO1_Ins-Pro'!D8 -> 41 | G11: 9350 | H11: =ROUND(I11*G11,2) -> 22080.96 | I11: ='PFP2.1_FatorKa'!$E$36 -> 2.3616 | J11: =ROUND(F11*G11,2) -> 383350 | K11: 905319.36
A12: SICRO | B12: MO1 | C12: T1 | D12: Técnico de projetos/obra (P8147) | E12: mês | F12: ='CRO1_Ins-Pro'!D9 -> 55 | G12: 2894.21 | H12: 6834.97 | I12: ='PFP2.1_FatorKa'!$E$36 -> 2.3616 | J12: 159181.55 | K12: 375923.35
A13: SICRO | B13: MO1 | C13: A1 | D13: Secretária (P8135) | E13: mês | F13: ='CRO1_Ins-Pro'!D10 -> 15 | G13: 2204.93 | H13: =ROUND(I13*G13,2) -> 5207.16 | I13: ='PFP2.1_FatorKa'!$E$36 -> 2.3616 | J13: =ROUND(F13*G13,2) -> 33073.95 | K13: =ROUND(F13*H13,2) -> 78107.4
A14: PROP | B14: MO1 | C14: S1 | D14: Analista sênior | E14: mês | F14: ='CRO1_Ins-Pro'!D11 -> 24 | G14: 6247.13 | H14: 14753.22 | I14: ='PFP2.1_FatorKa'!$E$36 -> 2.3616 | J14: 149931.12 | K14: 354077.28
A15: PROP | B15: MO1 | C15: S2 | D15: Analista pleno | E15: mês | F15: ='CRO1_Ins-Pro'!D12 -> 26 | G15: 3784.58 | H15: 8937.66 | I15: ='PFP2.1_FatorKa'!$E$36 -> 2.3616 | J15: 98399.08 | K15: 232379.16
A16: PROP | B16: MO1 | C16: S3 | D16: Analista júnior | E16: mês | F16: ='CRO1_Ins-Pro'!D13 -> 24 | G16: 3104.97 | H16: 7332.7 | I16: ='PFP2.1_FatorKa'!$E$36 -> 2.3616 | J16: 74519.28 | K16: 175984.8
A17: SICRO | B17: EC | C17: ECA | D17: Encargos Comp. e Adicionais | E17: mês | F17: ='CRO1_Ins-Pro'!D14 -> 295 | G17: 815.05 | H17: 1023.54 | I17: =PFP3_FatorKd!$E$17 -> 1.2558 | J17: =ROUND(F17*G17,2) -> 240439.75 | K17: =ROUND(F17*H17,2) -> 301944.3
A18: PROP | B18: EC | C18: AT1 | D18: Auxilio Transporte Analista junior | E18: mês | F18: =F16 -> 24 | G18: =IF((22*5)-(G16*0.06*22/30)>0,(22*5)-(G16*0.06*22/30),0) -> 0 | H18: =ROUND(I18*G18,2) -> 0 | I18: =PFP3_FatorKd!$E$17 -> 1.2558 | J18: =ROUND(F18*G18,2) -> 0 | K18: =ROUND(F18*H18,2) -> 0
A19: PROP | B19: EC | C19: AT2 | D19: Auxilio Transporte Técnicos | E19: mês | F19: ='CRO1_Ins-Pro'!D16 -> 55 | G19: =IF((22*5)-(G12*0.06*22/30)>0,(22*5)-(G12*0.06*22/30),0) -> 0 | H19: =ROUND(I19*G19,2) -> 0 | I19: =PFP3_FatorKd!$E$17 -> 1.2558 | J19: =ROUND(F19*G19,2) -> 0 | K19: =ROUND(F19*H19,2) -> 0
A20: PROP | B20: EC | C20: AT3 | D20: Auxilio Transporte Secretária | E20: mês | F20: ='CRO1_Ins-Pro'!D17 -> 15 | G20: =IF((22*5)-(G13*0.06*22/30)>0,(22*5)-(G13*0.06*22/30),0) -> 12.98308 | H20: 16.3 | I20: =PFP3_FatorKd!$E$17 -> 1.2558 | J20: 194.75 | K20: 244.5
A21: CODE | B21: LO | C21: V1 | D21: Diárias | E21: dia | F21: ='CRO1_Ins-Pro'!D18 -> 520 | G21: 239 | H21: 300.14 | I21: =PFP3_FatorKd!$E$17 -> 1.2558 | J21: 124280 | K21: 156072.8
A22: PROP | B22: LO | C22: V2 | D22: Pick-up Cab.dupla 2.8 4x4 Diesel | E22: dia | F22: ='CRO1_Ins-Pro'!D19 -> 130 | G22: 357.92 | H22: 449.48 | I22: =PFP3_FatorKd!$E$17 -> 1.2558 | J22: 46529.6 | K22: 58432.4
A23: PROP | B23: LO | C23: V3 | D23: Passagens Aéreas (ida e volta) | E23: un | F23: ='CRO1_Ins-Pro'!D20 -> 104 | G23: 1867.8 | H23: 2345.58 | I23: =PFP3_FatorKd!$E$17 -> 1.2558 | J23: 194251.2 | K23: 243940.32
A24: CODE | B24: EM | C24: M1 | D24: Relatório Parcial | E24: un | F24: ='CRO1_Ins-Pro'!D21 -> 33 | G24: 34.41245818 | H24: 43.22 | I24: =PFP3_FatorKd!$E$17 -> 1.2558 | J24: 1135.61 | K24: =ROUND(F24*H24,2) -> 1426.26
A25: CODE | B25: EM | C25: M2 | D25: Relatório Final | E25: un | F25: ='CRO1_Ins-Pro'!D22 -> 33 | G25: 1525.911339 | H25: 1916.24 | I25: =PFP3_FatorKd!$E$17 -> 1.2558 | J25: 50355.07 | K25: =ROUND(F25*H25,2) -> 63235.92
A26: CODE | B26: SU | C26: TOP | D26: Total Serviços Cartográficos | E26: un | F26: ='CRO1_Ins-Pro'!D23 -> 1 | G26: - | H26: ='PFP1.1_Topo'!G23 -> 883147.32 | I26: - | J26: - | K26: =ROUND(F26*H26,2) -> 883147.32
A27: CODE | B27: SU | C27: GEO | D27: Total Serviços Geotécnicos | E27: un | F27: ='CRO1_Ins-Pro'!D24 -> 1 | G27: - | H27: ='PFP1.2_Geo'!G33 -> 283390.15 | I27: - | J27: - | K27: =ROUND(F27*H27,2) -> 283390.15
A28: CODE | B28: SU | C28: AMB | D28: Total Serviços Ambientais | E28: un | F28: ='CRO1_Ins-Pro'!D25 -> 1 | G28: - | H28: ='PFP1.3_Amb'!G29 -> 6184.92 | I28: - | J28: - | K28: =ROUND(F28*H28,2) -> 6184.92
A29: TOTAL DOS CUSTOS DIRETOS | H29: =SUM(J8:J28) -> 2925341.44
A30: TOTAL DOS ENCARGOS E DISPESAS DIVERSAS | H30: =H31-H29 -> 2617171.11
A31: TOTAL DA PROPOSTA A PREÇO GLOBAL | H31: =SUM(K8:K25) -> 5542512.55
A32: TOTAL DA PROPOSTA A PREÇO UNITÁRIO | H32: =SUM(K26:K28) -> 1172722.39
A33: TOTAL DA PROPOSTA | H33: =H31+H32 -> 6715234.94
A34: OBSERVAÇÃO:
A35: Alocar os Insumos MO, com respectivo FatorK, dentro da categoria de vínculo contratual (celetista, autonomo, societario)
A36: Uni - unidade de medição do insumo;
A37: Qde - Quantidade do Insumo (não pode ocorrer alteração pela Licitante)
A38: CUD - Custo Unitário Direto do Insumo (sem encargos, taxas e impostos, valor não pode ser maior que o Orçado pela Codevasf)
A39: CT - Custo Total (sem encargos, taxas e impostos) - CT = Qde x CUD
A40: FatorK - Taxa de Ressarcimento de Despesas e Encargos (detalhar composição nas Planilhas "PFP2.1", "PFP2.2", "PFP3")
A41: PU - Preço Unitário do Insumo (incluído encargos, taxas e impostos) - PU = CUD x FatorK
A42: PT - Preço Total do Insumo (incluído encargos, taxas e impostos) - PT = Qde x PU
A43: P - Profissionais nível superior nas áreas de Engenharia, Química, Arquitetura, Agronomia e Veterinária, conforme disposições da Lei 4.950-A/66
A44: S - Profissionais de nível superior nas demais áreas de atuação, incluindo Arqueólogo, Biólogo, Geógrafo e Sociólogo
A45: T - Profissionais de nível médio técnico nas diversas áreas de atuação
A46: A - Profissionais de nível médio de apoio técnico-administrativo

Sheet PFP1.1_Topo
A1: SERVIÇOS TOPOGRÁFICOS/CARTOGRÁFICOS | G1: CODIGO:
G2: PFP-1.1
A3: NOME DA EMPRESA:
A5: PROJETO: | E5: CONTRATANTE: | G5: BASE: Jul/2021
A6: =PFP!A6 -> Estudos e Projeto Básico da Adutora Agreste Potiguar, no Estado do Rio Grande do Norte | E6: CODEVASF (SEDE) | G6: CODE: Jul/2021
A7: Cod. | B7: Base | C7: Insumos | D7: Uni | E7: Qde | F7: Preço Unitário (PU) | G7: Preço Total (PT)
A8: TP08 | B8: CODE | C8: Nivelamento Geométrico classe IIN | D8: km | E8: 200 | F8: 825.08 | G8: =ROUND(F8*E8,2) -> 165016
A9: TP09 | B9: CODE | C9: Nivelamento Geométrico classe IIN (Secções) | D9: km | E9: 200 | F9: 825.08 | G9: 165016
A10: TP16.1 | B10: CODE | C10: Poligonal Classe IIP (Locação) | D10: km | E10: 200 | F10: 1855.85 | G10: 371170
A11: TP19 | B11: CODE | C11: Pontos GPS de dupla frequencia (L1/L2) | D11: km | E11: 86 | F11: 1026.3 | G11: 88261.8
A12: TP20 | B12: CODE | C12: Levantamento Ecobatimetrico | D12: ha | E12: 4 | F12: 892.65 | G12: 3570.6
A13: TP21 | B13: CODE | C13: Levantamento Topobatimétrico | D13: km | E13: 4 | F13: 1318.95 | G13: 5275.8
A14: TP23 | B14: CODE | C14: Cadastro Físico (Faixa domínio e instalações) | D14: ha | E14: =200*0.1*100*0.1 -> 200 | F14: 18.68 | G14: 3736
A15: TP24 | B15: CODE | C15: Cadastro Agrícola (Faixa domínio e instalações) | D15: ha | E15: =200*0.1*100*0.1 -> 200 | F15: 6.22 | G15: 1244
A16: TP25 | B16: CODE | C16: Cadastro Jurídico (Faixa domínio e instalações) | D16: ha | E16: 200 | F16: 12.46 | G16: 2492
A17: TP26 | B17: CODE | C17: Cadastro Socioeconomico (Faixa domínio e instalações) | D17: ha | E17: 200 | F17: 4.15 | G17: 830
A18: TP27 | B18: CODE | C18: Marco de Concreto (12x18x60cm) | D18: un | E18: 86 | F18: 56.37 | G18: 4847.82
A19: TP28 | B19: CODE | C19: Estaca Testemunha de Madeira (2x4x70cm) | D19: un | E19: 1000 | F19: 15.13 | G19: 15130
A20: TP29 | B20: CODE | C20: Piquetes de Madeira (2x2x20cm) | D20: un | E20: 10000 | F20: 2.52 | G20: 25200
A21: PD06 | B21: CODE | C21: Picada Manual p/ levantamento TP | D21: un | E21: 100 | F21: 216.39 | G21: 21639
A22: PD08 | B22: CODE | C22: Picada c/ Trator de Esteira | D22: un | E22: 10 | F22: 971.83 | G22: 9718.3
A23: TOTAL SERVIÇOS TOPOGRÁFICOS | G23: =SUM(G8:G22) -> 883147.32
A24: OBSERVAÇÃO:
A25: Uni - unidade de medição do insumo;
A26: Qde - Quantidade do Insumo (não pode ocorrer alteração pela Licitante)
A27: PU - Preço Unitário (composições padrão da Codevasf, já incluso o FatorK)
A28: PT - Preço Total (incluído encargos, taxas e impostos) - PT = Qde x PU

Sheet PFP1.2_Geo
A1: SERVIÇOS GEOLÓGICOS/GEOTÉCNICOS | G1: CODIGO:
G2: PFP-1.2
A3: NOME DA EMPRESA:
A5: PROJETO: | E5: CONTRATANTE: | G5: BASE: Jul/2021
A6: =PFP!A6 -> Estudos e Projeto Básico da Adutora Agreste Potiguar, no Estado do Rio Grande do Norte | E6: CODEVASF (SEDE) | G6: CODE: Jul/2021
A7: Cod. | B7: Base | C7: Insumos | D7: Uni | E7: Qde | F7: Preço Unitário (PU) | G7: Preço Total (PT)
A8: GT07 | B8: CODE | C8: Sondagem Percussão: (Des)Mobilização | D8: un | E8: 2 | F8: 923.06 | G8: =ROUND(F8*E8,2) -> 1846.12
A9: GT08 | B9: CODE | C9: Sondagem Percursão: com SPT | D9: m | E9: 240 | F9: 80.95 | G9: 19428
A10: GT09 | B10: CODE | C10: Sondagem Percursão: Desloc/Instalação 0-200 m | D10: un | E10: 31 | F10: 718.9 | G10: 22285.9
A11: GT10 | B11: CODE | C11: Sondagem Percursão: Desloc/Instalação 201-500 m | D11: un | E11: 2 | F11: 1052.03 | G11: 2104.06
A12: GT11 | B12: CODE | C12: Sondagem Percursão: Desloc/Instalação >500 m | D12: un | E12: 10 | F12: 1385.15 | G12: 13851.5
A13: GT13 | B13: CODE | C13: Sondagem Trado 4'' | D13: m | E13: 100 | F13: 68.2 | G13: 6820
A14: GT14 | B14: CODE | C14: Poço de Inspeção | D14: m | E14: 700 | F14: 200.25 | G14: 140175
A15: GT15 | B15: CODE | C15: Ensaio: Umidade Natural | D15: un | E15: 30 | F15: 88.73 | G15: 2661.9
A16: GT16 | B16: CODE | C16: Ensaio: Densidade Natural | D16: un | E16: 30 | F16: 88.73 | G16: 2661.9
A17: GT17 | B17: CODE | C17: Ensaio: Limite de Liquidez | D17: un | E17: 30 | F17: 122.87 | G17: 3686.1
A18: GT18 | B18: CODE | C18: Ensaio: Limite de Plasticidade | D18: un | E18: 30 | F18: 122.87 | G18: 3686.1
A19: GT19 | B19: CODE | C19: Ensaio: Granulometria por Peneiramento | D19: un | E19: 30 | F19: 129.53 | G19: 3885.9
A20: GT20 | B20: CODE | C20: Ensaio: Granulometria por Sedimentação | D20: un | E20: 30 | F20: 402.01 | G20: 12060.3
A21: GT21 | B21: CODE | C21: Ensaio: Compactação Proctor Normal | D21: un | E21: 30 | F21: 168.46 | G21: 5053.8
A22: GT22 | B22: CODE | C22: Ensaio: Massa Especifica Real dos Grãos | D22: un | E22: 30 | F22: 109.5 | G22: 3285
A23: GT23 | B23: CODE | C23: Ensaio: Adensamento Oedométrico | D23: un | E23: 20 | F23: 297.81 | G23: 5956.2
A24: GT28 | B24: CODE | C24: Ensaio: Dispersão Granulometria Comparativa | D24: un | E24: 20 | F24: 239.97 | G24: 4799.4
A25: GT29 | B25: CODE | C25: Ensaio: Dispersão Crumb Test | D25: un | E25: 20 | F25: 88.91 | G25: 1778.2
A26: GT30 | B26: CODE | C26: Ensaio: Infiltração | D26: un | E26: 10 | F26: 239.97 | G26: 2399.7
A27: GT32 | B27: CODE | C27: Ensaio: Análise Quimica da Areia | D27: un | E27: 3 | F27: 482.9 | G27: 1448.7
A28: GT33 | B28: CODE | C28: Ensaio: Mineralogia da Areia | D28: un | E28: 3 | F28: 555.77 | G28: 1667.31
A29: GT34 | B29: CODE | C29: Ensaio: Análise Petrográfica/Mineralogia | D29: un | E29: 3 | F29: 555.77 | G29: 1667.31
A30: GT35 | B30: CODE | C30: Ensaio: Abrasão Los Angeles | D30: un | E30: 3 | F30: 434.98 | G30: 1304.94
A31: GT36 | B31: CODE | C31: Ensaio: Reatividade Potencial | D31: un | E31: 3 | F31: 1452.07 | G31: 4356.21
A32: GT38 | B32: CODE | C32: Ensaio: Retirada de Amostra Indeformada | D32: un | E32: 20 | F32: 726.03 | G32: =ROUND(F32*E32,2) -> 14520.6
A33: TOTAL SERVIÇOS GEOTÉCNICOS | G33: =SUM(G8:G32) -> 283390.15
A34: LEGENDA:
A35: Uni - unidade de medição do insumo;
A36: Qde - Quantidade do Insumo (não pode ocorrer alteração pela Licitante)
A37: PU - Preço Unitário (composições padrão da Codevasf, já incluso o FatorK)
A38: PT - Preço Total (incluído encargos, taxas e impostos) - PT = Qde x PU

Sheet PFP1.3_Amb
A1: SERVIÇOS ANÁLISE AMBIENTAL | G1: CODIGO:
G2: PFP-1.3
A3: NOME DA EMPRESA:
A5: PROJETO: | E5: CONTRATANTE: | G5: BASE: Jul/2021
A6: =PFP!A6 -> Estudos e Projeto Básico da Adutora Agreste Potiguar, no Estado do Rio Grande do Norte | E6: CODEVASF (SEDE) | G6: CODE: Jul/2021
A7: Cod. | B7: Base | C7: Insumos | D7: Uni | E7: Qde | F7: Preço Unitário (PU) | G7: Preço Total (PT)
A8: AM01 | B8: PROP | C8: Alcalinidade Total | D8: un | E8: 6 | F8: 41.49 | G8: =ROUND(E8*F8,2) -> 248.94
A9: AM02 | B9: PROP | C9: Condutividade | D9: un | E9: 6 | F9: 42.18 | G9: =ROUND(E9*F9,2) -> 253.08
A10: AM03 | B10: PROP | C10: DBO | D10: un | E10: 6 | F10: 40.67 | G10: 244.02
A11: AM04 | B11: PROP | C11: DQO | D11: un | E11: 6 | F11: 49.55 | G11: 297.3
A12: AM05 | B12: PROP | C12: Salinidade | D12: un | E12: 6 | F12: 46.69 | G12: 280.14
A13: AM06 | B13: PROP | C13: Sólidos Dissolvidos Totais | D13: un | E13: 6 | F13: 34.51 | G13: 207.06
A14: AM07 | B14: PROP | C14: Sólidos Suspensos | D14: un | E14: 6 | F14: 37.67 | G14: 226.02
A15: AM08 | B15: PROP | C15: Sólidos Totais | D15: un | E15: 6 | F15: 34.51 | G15: 207.06
A16: AM09 | B16: PROP | C16: Turbidez | D16: un | E16: 6 | F16: 25.7 | G16: 154.2
A17: AM10 | B17: PROP | C17: Oxigênio Dissolvido | D17: un | E17: 6 | F17: 40.68 | G17: 244.08
A18: AM11 | B18: PROP | C18: pH | D18: un | E18: 6 | F18: 23.93 | G18: 143.58
A19: AM12 | B19: PROP | C19: Temperatura | D19: un | E19: 6 | F19: 23.8 | G19: 142.8
A20: AM13 | B20: PROP | C20: Fósforo Total | D20: un | E20: 6 | F20: 45.97 | G20: 275.82
A21: AM14 | B21: PROP | C21: Nitrogênio Amoniacal | D21: un | E21: 6 | F21: 48.76 | G21: 292.56
A22: AM15 | B22: PROP | C22: Nitrogênio Nitrato | D22: un | E22: 6 | F22: 36.26 | G22: 217.56
A23: AM16 | B23: PROP | C23: Nitrogênio Total | D23: un | E23: 6 | F23: 42.56 | G23: 255.36
A24: AM17 | B24: PROP | C24: Clorofila A | D24: un | E24: 6 | F24: 121.32 | G24: 727.92
A25: AM18 | B25: PROP | C25: Coliformes Termotolerantes | D25: un | E25: 6 | F25: 34.13 | G25: 204.78
A26: AM19 | B26: PROP | C26: Metais Pesados | D26: un | E26: 6 | F26: 169.87 | G26: 1019.22
A27: AM20 | B27: PROP | C27: Organoclorados | D27: un | E27: 6 | F27: 90.57 | G27: 543.42
A28: AM21 | B28: PROP | C28: Organofosforado | D28: un | E28: 6 | F28: 80.26 | G28: =ROUND(E28*F28,2) -> 481.56
A29: TOTAL SERVIÇOS GEOTÉCNICOS | G29: =SUM(G8:G27) -> 6184.92
A30: LEGENDA:
A31: Uni - unidade de medição do insumo;
A32: Qde - Quantidade do Insumo (não pode ocorrer alteração pela Licitante)
A33: PU - Preço Unitário (composições padrão da Codevasf, já incluso o FatorK)
A34: PT - Preço Total (incluído encargos, taxas e impostos) - PT = Qde x PU

Sheet PFP2.1_FatorKa
A1: DETALHAMENTO DOS ENCARGOS SOCIAIS: Ka | F1: CODIGO:
F2: PFP-2.1
A3: NOME DA CONSULTORA:
A5: PROJETO: | C5: CONTRATANTE: | F5: BASE: Jul/2021
A6: =PFP!A6 -> Estudos e Projeto Básico da Adutora Agreste Potiguar, no Estado do Rio Grande do Norte | C6: CODEVASF (SEDE) | F6: SINAPI/DF: Mai/2021
A7: Cod | B7: DESCRIÇÃO | E7: % | F7: R$
A8: A | B8: ENCARGOS SOCIAIS BÁSICOS | E8: =ROUND(SUM(E9:E17),4) -> 0.378 | F8: =ROUND(E8*SUMIF(PFP!$B$8:$B$27,"MO1",PFP!$J$8:$J$27),2) -> 526631.45
A9: A1 | B9: INSS | E9: 0.2 | F9: =ROUND(E9*SUMIF(PFP!$B$8:$B$27,"MO1",PFP!$J$8:$J$27),2) -> 278640.98
A10: A2 | B10: SESI | E10: 0.015 | F10: =ROUND(E10*SUMIF(PFP!$B$8:$B$27,"MO1",PFP!$J$8:$J$27),2) -> 20898.07
A11: A3 | B11: SENAI | E11: 0.01 | F11: =ROUND(E11*SUMIF(PFP!$B$8:$B$27,"MO1",PFP!$J$8:$J$27),2) -> 13932.05
A12: A4 | B12: INCRA | E12: 0.002 | F12: =ROUND(E12*SUMIF(PFP!$B$8:$B$27,"MO1",PFP!$J$8:$J$27),2) -> 2786.41
A13: A5 | B13: SEBRAE | E13: 0.006 | F13: =ROUND(E13*SUMIF(PFP!$B$8:$B$27,"MO1",PFP!$J$8:$J$27),2) -> 8359.23
A14: A6 | B14: Salário Educação | E14: 0.025 | F14: =ROUND(E14*SUMIF(PFP!$B$8:$B$27,"MO1",PFP!$J$8:$J$27),2) -> 34830.12
A15: A7 | B15: Seguro Contra Acidentes de Trabalho | E15: 0.03 | F15: =ROUND(E15*SUMIF(PFP!$B$8:$B$27,"MO1",PFP!$J$8:$J$27),2) -> 41796.15
A16: A8 | B16: FGTS | E16: 0.08 | F16: =ROUND(E16*SUMIF(PFP!$B$8:$B$27,"MO1",PFP!$J$8:$J$27),2) -> 111456.39
A17: A9 | B17: SECONCI | E17: 0.01 | F17: =ROUND(E17*SUMIF(PFP!$B$8:$B$27,"MO1",PFP!$J$8:$J$27),2) -> 13932.05
A18: B | B18: ENCARGOS SOCIAIS QUE RECEBEM INCIDÊNCIA DE "A" | E18: =ROUND(SUM(E19:E25),4) -> 0.2036 | F18: =ROUND(E18*SUMIF(PFP!$B$8:$B$27,"MO1",PFP!$J$8:$J$27),2) -> 283656.52
A19: B3 | B19: Auxílio Enfermidade | E19: 0.0067 | F19: =ROUND(E19*SUMIF(PFP!$B$8:$B$27,"MO1",PFP!$J$8:$J$27),2) -> 9334.47
A20: B4 | B20: 13º Salário | E20: 0.0833 | F20: =ROUND(E20*SUMIF(PFP!$B$8:$B$27,"MO1",PFP!$J$8:$J$27),2) -> 116053.97
A21: B5 | B21: Licença Paternidade | E21: 0.0006 | F21: =ROUND(E21*SUMIF(PFP!$B$8:$B$27,"MO1",PFP!$J$8:$J$27),2) -> 835.92
A22: B6 | B22: Faltas Justificadas | E22: 0.0056 | F22: =ROUND(E22*SUMIF(PFP!$B$8:$B$27,"MO1",PFP!$J$8:$J$27),2) -> 7801.95
A23: B8 | B23: Auxílio Acidente de Trabalho | E23: 0.0008 | F23: =ROUND(E23*SUMIF(PFP!$B$8:$B$27,"MO1",PFP!$J$8:$J$27),2) -> 1114.56
A24: B9 | B24: Férias Gozadas | E24: 0.1063 | F24: =ROUND(E24*SUMIF(PFP!$B$8:$B$27,"MO1",PFP!$J$8:$J$27),2) -> 148097.68
A25: B10 | B25: Salário Maternidade | E25: 0.0003 | F25: =ROUND(E25*SUMIF(PFP!$B$8:$B$27,"MO1",PFP!$J$8:$J$27),2) -> 417.96
A26: C | B26: ENCARGOS SOCIAIS QUE NÃO RECEBEM INCIDÊNCIA DE "A" | E26: =ROUND(SUM(E27:E31),4) -> 0.0691 | F26: =ROUND(E26*SUMIF(PFP!$B$8:$B$27,"MO1",PFP!$J$8:$J$27),2) -> 96270.46
A27: C1 | B27: Aviso Prévio Indenizado | E27: 0.0324 | F27: =ROUND(E27*SUMIF(PFP!$B$8:$B$27,"MO1",PFP!$J$8:$J$27),2) -> 45139.84
A28: C2 | B28: Aviso Prévio Trabalhado | E28: 0.0008 | F28: =ROUND(E28*SUMIF(PFP!$B$8:$B$27,"MO1",PFP!$J$8:$J$27),2) -> 1114.56
A29: C3 | B29: Férias Indenizadas | E29: 0.0036 | F29: =ROUND(E29*SUMIF(PFP!$B$8:$B$27,"MO1",PFP!$J$8:$J$27),2) -> 5015.54
A30: C4 | B30: Depósito Rescisão Sem Justa Causa | E30: 0.0296 | F30: =ROUND(E30*SUMIF(PFP!$B$8:$B$27,"MO1",PFP!$J$8:$J$27),2) -> 41238.87
A31: C5 | B31: Indenização Adicional | E31: 0.0027 | F31: =ROUND(E31*SUMIF(PFP!$B$8:$B$27,"MO1",PFP!$J$8:$J$27),2) -> 3761.65
A32: D | B32: REINCIDÊNCIAS | E32: =ROUND(SUM(E33:E34),4) -> 0.0799 | F32: =ROUND(E32*SUMIF(PFP!$B$8:$B$27,"MO1",PFP!$J$8:$J$27),2) -> 111317.07
A33: D1 | B33: Reincidência de "A" sobre "B" | E33: =ROUND(E8*E18,4) -> 0.077 | F33: =ROUND(E33*SUMIF(PFP!$B$8:$B$27,"MO1",PFP!$J$8:$J$27),2) -> 107276.78
A34: D2 | B34: Reincidência de "A" sobre Aviso Prévio Trabalhado e reincidência do FGTS sobre Aviso Prévio Indenizado | E34: =ROUND((E28*E8)+(E27*E16),4) -> 0.0029 | F34: =ROUND(E34*SUMIF(PFP!$B$8:$B$27,"MO1",PFP!$J$8:$J$27),2) -> 4040.29
A35: K1a | B35: ENCARGOS SOCIAIS | E35: =ROUND(E8+E18+E26+E32,4) -> 0.7306 | F35: =ROUND(E35*SUMIF(PFP!$B$8:$B$27,"MO1",PFP!$J$8:$J$27),2) -> 1017875.5
A36: Ka | B36: TAXA DE RESSARCIMENTO DE DESPESAS E ENCARGOS SOBRE MO1 | E36: =ROUND((1+E35+PFP3_FatorKd!E13)*(1+PFP3_FatorKd!E12)*(1+PFP3_FatorKd!E8),4) -> 2.3616
A37: OBSERVAÇÃO: CELETISTAS E EQUIVALENTES
A38: 1 - DISCRIMINAR OS ENCARGOS SOCIAIS COM SEUS RESPECTIVOS PERCENTUAS TOTALIZANDO OS MESMOS.
A39: 2 - APLICAR O % TOTAL P/ CALCULAR OS E. SOCIAIS INCIDENTES NA MÃO-DE-OBRA CELETISTAS
A40: Ka - Taxa de Ressarcimento de Despesas e Encargos sobre a Mão de Obra CELETISTA (incide apenas no Insumo Codigo MO1)
A41: Ka = (1 + K1 + K2) x (1 + K3) x (1 + K4)

Sheet PFP2.2_FatorKb
A1: DETALHAMENTO DOS ENCARGOS SOCIAIS: Kb | F1: CODIGO:
F2: PFP-2.2
A3: NOME DA CONSULTORA:
A5: PROJETO: | C5: CONTRATANTE: | F5: BASE: Jul/2021
A6: =PFP!A6 -> Estudos e Projeto Básico da Adutora Agreste Potiguar, no Estado do Rio Grande do Norte | C6: CODEVASF (SEDE) | F6: SINAPI/DF: Mai/2021
A7: Cod | B7: DESCRIÇÃO | E7: % | F7: R$
A8: A | B8: ENCARGOS SOCIAIS BÁSICOS | E8: =ROUND(SUM(E9:E17),4) -> 0.2 | F8: =ROUND(E8*SUMIF(PFP!$B$8:$B$27,"MO2",PFP!$J$8:$J$27),2) -> 130180.7
A9: A1 | B9: INSS | E9: 0.2 | F9: =ROUND(E9*SUMIF(PFP!$B$8:$B$27,"MO2",PFP!$J$8:$J$27),2) -> 130180.7
A10: A2 | B10: SESI | E10: 0 | F10: =ROUND(E10*SUMIF(PFP!$B$8:$B$27,"MO2",PFP!$J$8:$J$27),2) -> 0
A11: A3 | B11: SENAI | E11: 0 | F11: =ROUND(E11*SUMIF(PFP!$B$8:$B$27,"MO2",PFP!$J$8:$J$27),2) -> 0
A12: A4 | B12: INCRA | E12: 0 | F12: =ROUND(E12*SUMIF(PFP!$B$8:$B$27,"MO2",PFP!$J$8:$J$27),2) -> 0
A13: A5 | B13: SEBRAE | E13: 0 | F13: =ROUND(E13*SUMIF(PFP!$B$8:$B$27,"MO2",PFP!$J$8:$J$27),2) -> 0
A14: A6 | B14: Salário Educação | E14: 0 | F14: =ROUND(E14*SUMIF(PFP!$B$8:$B$27,"MO2",PFP!$J$8:$J$27),2) -> 0
A15: A7 | B15: Seguro Contra Acidentes de Trabalho | E15: 0 | F15: =ROUND(E15*SUMIF(PFP!$B$8:$B$27,"MO2",PFP!$J$8:$J$27),2) -> 0
A16: A8 | B16: FGTS | E16: 0 | F16: =ROUND(E16*SUMIF(PFP!$B$8:$B$27,"MO2",PFP!$J$8:$J$27),2) -> 0
A17: A9 | B17: SECONCI | E17: 0 | F17: =ROUND(E17*SUMIF(PFP!$B$8:$B$27,"MO2",PFP!$J$8:$J$27),2) -> 0
A18: B | B18: ENCARGOS SOCIAIS QUE RECEBEM INCIDÊNCIA DE "A" | E18: =ROUND(SUM(E19:E25),4) -> 0 | F18: =ROUND(E18*SUMIF(PFP!$B$8:$B$27,"MO2",PFP!$J$8:$J$27),2) -> 0
A19: B3 | B19: Auxílio Enfermidade | E19: 0 | F19: =ROUND(E19*SUMIF(PFP!$B$8:$B$27,"MO2",PFP!$J$8:$J$27),2) -> 0
A20: B4 | B20: 13º Salário | E20: 0 | F20: =ROUND(E20*SUMIF(PFP!$B$8:$B$27,"MO2",PFP!$J$8:$J$27),2) -> 0
A21: B5 | B21: Licença Paternidade | E21: 0 | F21: =ROUND(E21*SUMIF(PFP!$B$8:$B$27,"MO2",PFP!$J$8:$J$27),2) -> 0
A22: B6 | B22: Faltas Justificadas | E22: 0 | F22: =ROUND(E22*SUMIF(PFP!$B$8:$B$27,"MO2",PFP!$J$8:$J$27),2) -> 0
A23: B8 | B23: Auxílio Acidente de Trabalho | E23: 0 | F23: =ROUND(E23*SUMIF(PFP!$B$8:$B$27,"MO2",PFP!$J$8:$J$27),2) -> 0
A24: B9 | B24: Férias Gozadas | E24: 0 | F24: =ROUND(E24*SUMIF(PFP!$B$8:$B$27,"MO2",PFP!$J$8:$J$27),2) -> 0
A25: B10 | B25: Salário Maternidade | E25: 0 | F25: =ROUND(E25*SUMIF(PFP!$B$8:$B$27,"MO2",PFP!$J$8:$J$27),2) -> 0
A26: C | B26: ENCARGOS SOCIAIS QUE NÃO RECEBEM INCIDÊNCIA DE "A" | E26: =ROUND(SUM(E27:E31),4) -> 0 | F26: =ROUND(E26*SUMIF(PFP!$B$8:$B$27,"MO2",PFP!$J$8:$J$27),2) -> 0
A27: C1 | B27: Aviso Prévio Indenizado | E27: 0 | F27: =ROUND(E27*SUMIF(PFP!$B$8:$B$27,"MO2",PFP!$J$8:$J$27),2) -> 0
A28: C2 | B28: Aviso Prévio Trabalhado | E28: 0 | F28: =ROUND(E28*SUMIF(PFP!$B$8:$B$27,"MO2",PFP!$J$8:$J$27),2) -> 0
A29: C3 | B29: Férias Indenizadas | E29: 0 | F29: =ROUND(E29*SUMIF(PFP!$B$8:$B$27,"MO2",PFP!$J$8:$J$27),2) -> 0
A30: C4 | B30: Depósito Rescisão Sem Justa Causa | E30: 0 | F30: =ROUND(E30*SUMIF(PFP!$B$8:$B$27,"MO2",PFP!$J$8:$J$27),2) -> 0
A31: C5 | B31: Indenização Adicional | E31: 0 | F31: =ROUND(E31*SUMIF(PFP!$B$8:$B$27,"MO2",PFP!$J$8:$J$27),2) -> 0
A32: D | B32: REINCIDÊNCIAS | E32: =ROUND(SUM(E33:E34),4) -> 0 | F32: =ROUND(E32*SUMIF(PFP!$B$8:$B$27,"MO2",PFP!$J$8:$J$27),2) -> 0
A33: D1 | B33: Reincidência de "A" sobre "B" | E33: =ROUND(E8*E18,4) -> 0 | F33: =ROUND(E33*SUMIF(PFP!$B$8:$B$27,"MO2",PFP!$J$8:$J$27),2) -> 0
A34: D2 | B34: Reincidência de "A" sobre Aviso Prévio Trabalhado e reincidência do FGTS sobre Aviso Prévio Indenizado | E34: =ROUND(E8*E28,4)+ROUND(E27*E11,4) -> 0 | F34: =ROUND(E34*SUMIF(PFP!$B$8:$B$27,"MO2",PFP!$J$8:$J$27),2) -> 0
A35: K1b | B35: ENCARGOS SOCIAIS | E35: =ROUND(E8+E18+E26+E32,4) -> 0.2 | F35: =ROUND(E35*SUMIF(PFP!$B$8:$B$27,"MO2",PFP!$J$8:$J$27),2) -> 130180.7
A36: Kb | B36: TAXA DE RESSARCIMENTO DE DESPESAS E ENCARGOS SOBRE MO2 | E36: =ROUND((1+E35+PFP3_FatorKd!E13)*(1+PFP3_FatorKd!E12)*(1+PFP3_FatorKd!E8),4) -> 1.6953
A37: OBSERVAÇÃO: AUTÔNOMOS E EQUIVALENTES
A38: 1 - DISCRIMINAR OS ENCARGOS SOCIAIS COM SEUS RESPECTIVOS PERCENTUAS TOTALIZANDO OS MESMOS.
A39: 2 - APLICAR O % TOTAL P/ CALCULAR OS E. SOCIAIS INCIDENTES NA MÃO-DE-OBRA AUTONÔMOS
A40: Kb - Taxa de Ressarcimento de Despesas e Encargos sobre a Mão de Obra AUTONÔMA (incide apenas no Insumo Codigo MO2)
A41: Kb = (1 + K1 + K2) x (1 + K3) x (1 + K4)

Sheet PFP2.3_FatorKc
A1: DETALHAMENTO DOS ENCARGOS SOCIAIS: Kc | F1: CODIGO:
F2: PFP-2.3
A3: NOME DA CONSULTORA:
A5: PROJETO: | C5: CONTRATANTE: | F5: BASE: Jul/2021
A6: =PFP!A6 -> Estudos e Projeto Básico da Adutora Agreste Potiguar, no Estado do Rio Grande do Norte | C6: CODEVASF (SEDE) | F6: SINAPI/DF: Mai/2021
A7: Cod | B7: DESCRIÇÃO | E7: % | F7: R$
A8: A | B8: ENCARGOS SOCIAIS BÁSICOS | E8: =SUM(E9:E17) -> 0 | F8: =ROUND(E8*SUMIF(PFP!$B$8:$B$27,"MO3",PFP!$J$8:$J$27),2) -> 0
A9: A1 | B9: INSS | E9: 0 | F9: =ROUND(E9*SUMIF(PFP!$B$8:$B$27,"MO3",PFP!$J$8:$J$27),2) -> 0
A10: A2 | B10: SESI | E10: 0 | F10: =ROUND(E10*SUMIF(PFP!$B$8:$B$27,"MO3",PFP!$J$8:$J$27),2) -> 0
A11: A3 | B11: SENAI | E11: 0 | F11: =ROUND(E11*SUMIF(PFP!$B$8:$B$27,"MO3",PFP!$J$8:$J$27),2) -> 0
A12: A4 | B12: INCRA | E12: 0 | F12: =ROUND(E12*SUMIF(PFP!$B$8:$B$27,"MO3",PFP!$J$8:$J$27),2) -> 0
A13: A5 | B13: SEBRAE | E13: 0 | F13: =ROUND(E13*SUMIF(PFP!$B$8:$B$27,"MO3",PFP!$J$8:$J$27),2) -> 0
A14: A6 | B14: Salário Educação | E14: 0 | F14: =ROUND(E14*SUMIF(PFP!$B$8:$B$27,"MO3",PFP!$J$8:$J$27),2) -> 0
A15: A7 | B15: Seguro Contra Acidentes de Trabalho | E15: 0 | F15: =ROUND(E15*SUMIF(PFP!$B$8:$B$27,"MO3",PFP!$J$8:$J$27),2) -> 0
A16: A8 | B16: FGTS | E16: 0 | F16: =ROUND(E16*SUMIF(PFP!$B$8:$B$27,"MO3",PFP!$J$8:$J$27),2) -> 0
A17: A9 | B17: SECONCI | E17: 0 | F17: =ROUND(E17*SUMIF(PFP!$B$8:$B$27,"MO3",PFP!$J$8:$J$27),2) -> 0
A18: B | B18: ENCARGOS SOCIAIS QUE RECEBEM INCIDÊNCIA DE "A" | E18: =ROUND(SUM(E19:E25),4) -> 0 | F18: =ROUND(E18*SUMIF(PFP!$B$8:$B$27,"MO3",PFP!$J$8:$J$27),2) -> 0
A19: B3 | B19: Auxílio Enfermidade | E19: 0 | F19: =ROUND(E19*SUMIF(PFP!$B$8:$B$27,"MO3",PFP!$J$8:$J$27),2) -> 0
A20: B4 | B20: 13º Salário | E20: 0 | F20: =ROUND(E20*SUMIF(PFP!$B$8:$B$27,"MO3",PFP!$J$8:$J$27),2) -> 0
A21: B5 | B21: Licença Paternidade | E21: 0 | F21: =ROUND(E21*SUMIF(PFP!$B$8:$B$27,"MO3",PFP!$J$8:$J$27),2) -> 0
A22: B6 | B22: Faltas Justificadas | E22: 0 | F22: =ROUND(E22*SUMIF(PFP!$B$8:$B$27,"MO3",PFP!$J$8:$J$27),2) -> 0
A23: B8 | B23: Auxílio Acidente de Trabalho | E23: 0 | F23: =ROUND(E23*SUMIF(PFP!$B$8:$B$27,"MO3",PFP!$J$8:$J$27),2) -> 0
A24: B9 | B24: Férias Gozadas | E24: 0 | F24: =ROUND(E24*SUMIF(PFP!$B$8:$B$27,"MO3",PFP!$J$8:$J$27),2) -> 0
A25: B10 | B25: Salário Maternidade | E25: 0 | F25: =ROUND(E25*SUMIF(PFP!$B$8:$B$27,"MO3",PFP!$J$8:$J$27),2) -> 0
A26: C | B26: ENCARGOS SOCIAIS QUE NÃO RECEBEM INCIDÊNCIA DE "A" | E26: =ROUND(SUM(E27:E31),4) -> 0 | F26: =ROUND(E26*SUMIF(PFP!$B$8:$B$27,"MO3",PFP!$J$8:$J$27),2) -> 0
A27: C1 | B27: Aviso Prévio Indenizado | E27: 0 | F27: =ROUND(E27*SUMIF(PFP!$B$8:$B$27,"MO3",PFP!$J$8:$J$27),2) -> 0
A28: C2 | B28: Aviso Prévio Trabalhado | E28: 0 | F28: =ROUND(E28*SUMIF(PFP!$B$8:$B$27,"MO3",PFP!$J$8:$J$27),2) -> 0
A29: C3 | B29: Férias Indenizadas | E29: 0 | F29: =ROUND(E29*SUMIF(PFP!$B$8:$B$27,"MO3",PFP!$J$8:$J$27),2) -> 0
A30: C4 | B30: Depósito Rescisão Sem Justa Causa | E30: 0 | F30: =ROUND(E30*SUMIF(PFP!$B$8:$B$27,"MO3",PFP!$J$8:$J$27),2) -> 0
A31: C5 | B31: Indenização Adicional | E31: 0 | F31: =ROUND(E31*SUMIF(PFP!$B$8:$B$27,"MO3",PFP!$J$8:$J$27),2) -> 0
A32: D | B32: REINCIDÊNCIAS | E32: =ROUND(SUM(E33:E34),4) -> 0 | F32: =ROUND(E32*SUMIF(PFP!$B$8:$B$27,"MO3",PFP!$J$8:$J$27),2) -> 0
A33: D1 | B33: Reincidência de "A" sobre "B" | E33: =ROUND(E8*E18,4) -> 0 | F33: =ROUND(E33*SUMIF(PFP!$B$8:$B$27,"MO3",PFP!$J$8:$J$27),2) -> 0
A34: D2 | B34: Reincidência de "A" sobre Aviso Prévio Trabalhado e reincidência do FGTS sobre Aviso Prévio Indenizado | E34: =ROUND(E8*E28,4)+ROUND(E27*E11,4) -> 0 | F34: =ROUND(E34*SUMIF(PFP!$B$8:$B$27,"MO3",PFP!$J$8:$J$27),2) -> 0
A35: K1c | B35: ENCARGOS SOCIAIS | E35: =ROUND(E8+E18+E26+E32,4) -> 0 | F35: =ROUND(E35*SUMIF(PFP!$B$8:$B$27,"MO3",PFP!$J$8:$J$27),2) -> 0
A36: Kc | B36: TAXA DE RESSARCIMENTO DE DESPESAS E ENCARGOS SOBRE MO3 | E36: =ROUND((1+E35+PFP3_FatorKd!E13)*(1+PFP3_FatorKd!E12)*(1+PFP3_FatorKd!E8),4) -> 1.4441
A37: OBSERVAÇÃO: SOCIETÁRIOS E EQUIVALENTES
A38: 1 - DISCRIMINAR OS ENCARGOS SOCIAIS COM SEUS RESPECTIVOS PERCENTUAS TOTALIZANDO OS MESMOS.
A39: 2 - APLICAR O % TOTAL P/ CALCULAR OS E. SOCIAIS INCIDENTES NA MÃO-DE-OBRA DE SOCIETÁRIOS
A40: Kc - Taxa de Ressarcimento de Despesas e Encargos sobre a Mão de Obra SOCIETÁRIA (incide apenas no Insumo Codigo MO3)
A41: Kc = (1 + K1 + K2) x (1 + K3) x (1 + K4)

Sheet PFP3_FatorKd
A1: DESPESAS FISCAIS E CUSTOS DIVERSOS: Kc | F1: CODIGO:
F2: PFP-3
A3: NOME DA CONSULTORA:
A5: PROJETO: | C5: CONTRATANTE: | F5: BASE: Jul/2021
A6: =PFP!A6 -> Estudos e Projeto Básico da Adutora Agreste Potiguar, no Estado do Rio Grande do Norte | C6: CODEVASF (SEDE) | F6: PROP: Jul/2021
A7: Cod | B7: DESCRIÇÃO1 | D7: % preço2 | E7: % custo4 | F7: R$
A8: K4 | B8: TRIBUTOS | D8: =ROUND(D9+D10+D11,4) -> 0.124 | E8: =ROUND(E9+E10+E11,4) -> 0.1416 | F8: =E8*SUM(SUMIF(PFP!$B$8:$B$27,"MO1",PFP!$J$8:$J$27)*(1+'PFP2.1_FatorKa'!$E$35)+SUMIF(PFP!$B$8:$B$27,"MO2",PFP!$J$8:$J$27)*(1+'PFP2.2_FatorKb'!$E$35)+SUMIF(PFP!$B$8:$B$27,"<>MO*",PFP!$J$8:$J$27)+$F$13+$F$12) -> 652568.0344
A9: K4.1 | B9: ISS | D9: 0.05 | E9: =ROUND((1/(1-$D$8))*D9,4) -> 0.0571 | F9: =E9*SUM(SUMIF(PFP!$B$8:$B$27,"MO1",PFP!$J$8:$J$27)*(1+'PFP2.1_FatorKa'!$E$35)+SUMIF(PFP!$B$8:$B$27,"MO2",PFP!$J$8:$J$27)*(1+'PFP2.2_FatorKb'!$E$35)+SUMIF(PFP!$B$8:$B$27,"<>MO*",PFP!$J$8:$J$27)+$F$13+$F$12) -> 263147.1382
A10: K4.2 | B10: PIS3 - aliquota efetiva aplicavel percentual-desconto | D10: =ROUND(1.65%*0.8,4) -> 0.0132 | E10: =ROUND((1/(1-$D$8))*D10,4) -> 0.0151 | F10: =E10*SUM(SUMIF(PFP!$B$8:$B$27,"MO1",PFP!$J$8:$J$27)*(1+'PFP2.1_FatorKa'!$E$35)+SUMIF(PFP!$B$8:$B$27,"MO2",PFP!$J$8:$J$27)*(1+'PFP2.2_FatorKb'!$E$35)+SUMIF(PFP!$B$8:$B$27,"<>MO*",PFP!$J$8:$J$27)+$F$13+$F$12) -> 69588.82288
A11: K4.3 | B11: COFINS3 - aliquota efetiva aplicavel percentual-desconto | D11: =ROUND(7.6%*0.8,4) -> 0.0608 | E11: =ROUND((1/(1-$D$8))*D11,4) -> 0.0694 | F11: =E11*SUM(SUMIF(PFP!$B$8:$B$27,"MO1",PFP!$J$8:$J$27)*(1+'PFP2.1_FatorKa'!$E$35)+SUMIF(PFP!$B$8:$B$27,"MO2",PFP!$J$8:$J$27)*(1+'PFP2.2_FatorKb'!$E$35)+SUMIF(PFP!$B$8:$B$27,"<>MO*",PFP!$J$8:$J$27)+$F$13+$F$12) -> 319832.0734
A12: K3 | B12: REMUNERAÇÃO DA EMPRESA (LUCRO) | E12: 0.1 | F12: =E12*SUM(SUMIF(PFP!$B$8:$B$27,"MO1",PFP!$J$8:$J$27)*(1+'PFP2.1_FatorKa'!$E$35)+SUMIF(PFP!$B$8:$B$27,"MO2",PFP!$J$8:$J$27)*(1+'PFP2.2_FatorKb'!$E$35)+SUMIF(PFP!$B$8:$B$27,"<>MO*",PFP!$J$8:$J$27)+$F$13) -> 418957.3924
A13: K2 | B13: CUSTOS DA ADMINISTRAÇÃO CENTRAL | E13: =ROUND(SUM(E14:E16),4) -> 0.15 | F13: =ROUND(E13*SUMIF(PFP!$B$8:$B$27,"MO*",PFP!$J$8:$J$27),2) -> 340223.32
A14: K2.1 | B14: Custos da administração central da empresa (diretoria, pessoal técnico de apoio e pessoal administrativo não diretamente vinculado à prestação dos serviços) | E14: 0.1 | F14: =ROUND(E14*SUMIF(PFP!$B$8:$B$27,"MO*",PFP!$J$8:$J$27),2) -> 226815.55
A15: K2.2 | B15: Outras despesas que afetam o custo de produção como treinamento, biblioteca, programa de qualidade, programa de benefícios, auditoria interna e externa | E15: 0.03 | F15: =ROUND(E15*SUMIF(PFP!$B$8:$B$27,"MO*",PFP!$J$8:$J$27),2) -> 68044.66
A16: K2.3 | B16: Despesas fixas e variaveis com patrimônio, aluguéis, comunicação, manutenção e transporte não diretamente relacionados com o custo direto dos serviços | E16: 0.02 | F16: =ROUND(E16*SUMIF(PFP!$B$8:$B$27,"MO*",PFP!$J$8:$J$27),2) -> 45363.11
A17: Kd | B17: TAXA RESSARCIMENTO DE DESPESAS SOBRE CUSTOS DIVERSOS | E17: =ROUND((1+E12)*(1+E8),4) -> 1.2558
A18: NOME DO INFORMANTE: | E18: QUALIFICAÇÃO:
A20: ASSINATURA: | E20: DATA:
A22: Observação:
A23: 1 - RELACIONAR OS CUSTOS DE ADMINISTRAÇÃO COM RESPECTIVOS PERCENTUAIS INCIDENTES NA MÃO -DE-OBRA
A24: 1 - DISCRIMINAR OS TRIBUTOS QUE INCIDEM SOBRE OS CUSTOS DA PRESTAÇÃO DOS SERVIÇOS
A25: 2 - K4 = INDICAR % DE CADA TRIBUTO E A SOMA DOS MESMOS (ex: ISS 5% + PIS 1,65% + COFINS 7,60% = 14,25%)
A26: 3 - PIS e COFINS, Regime de Incidencia Acumulativa (0,65% e 3,00% - sem percentual de desconto) ou em Regime de Incidencia Não Acumulativa (1,65% e 7,60% - aplicável percentual de desconto) de acordo com a forma de apuração do lucro no IRPJ. APRESENTAR COMPROVANTES de aproveitamento de créditos tributários dos últimos 12 meses em caso de aplicação de "percentual de desconto".
A27: 4 - AS DESPESAS FISCAIS (K4) INCIDEM SOBRE O TOTAL DA FATURA E NÃO SOBRE OS CUSTOS INCORRIDOS,
A28: DEVENDO SER CALCULADO O K4' APLICANDO-SE A SEGUINTE FÓRMULA:
A29: K4' = { [ 1 / ( 1 - K4) ] - 1 } x 100
A30: =CONCATENATE(" K4' = { [ 1 / ( 1 - ",D8," ) ] - 1 } x 100") -> K4' = { [ 1 / ( 1 - 0,124 ) ] - 1 } x 100
A31: Kc - Taxa de Ressarcimento de Despesas sobre Custos Diversos (incide sobre os Insumos Codigo DP e EM)
A32: Kc = (1 + K3) x (1 + K4)
A33: K2 - Incide sobre o Custo Total (CT) da Mão de Obra (MO* = MO1 + MO2)
A34: K3 - Incide sobre o Custo Total (CT) Mão de Obra com encargos (MO1 x Ka ou MO2 x Kb), demais Custos (DP e EM), e Custos da Administração Central (K2)
A35: K4 - Incide sobre o Custo Total (CT) Mão de Obra com encargos (MO1 x Ka ou MO2 x Kb), demais Custos (DP e EM), e Custos da Administração Central (K2) e Lucro (K3)

Sheet CRO1_Ins-Pro
A1: INSUMOS POR ETAPA/PRODUTO | P1: CODIGO:
P2: CRO-1
A3: Cod. | B3: Categoria / Insumo | C3: Uni | D3: Qde | E3: CUD | F3: PU | G3: FatorK | H3: EV | I3: EB | J3: EA | K3: T1 | L3: T2 | M3: T3 | N3: T4 | O3: T5 | P3: T6 | Q3: T7 | R3: T8
G4: Meses | H4: 2 | I4: 4 | J4: 4 | K4: 3 | L4: 2 | M4: 2 | N4: 3 | O4: 3 | P4: 2 | Q4: 2 | R4: 3
A5: =PFP!C8 -> P0 | B5: =PFP!D8 -> Engenheiro coordenador (P8061) | C5: mês | D5: =SUM(H5:R5) -> 14 | E5: =PFP!G8 -> 16003.36 | F5: =PFP!H8 -> 23110.45 | G5: =PFP!I8 -> 1.4441 | H5: 1 | I5: 1 | J5: 2 | K5: 1.5 | L5: 1 | M5: 1 | N5: 1.5 | O5: 1.5 | P5: 1 | Q5: 1 | R5: 1.5
A6: =PFP!C9 -> P1 | B6: =PFP!D9 -> Engenheiro sênior (P8067) | C6: mês | D6: =SUM(H6:R6) -> 48 | E6: =PFP!G9 -> 13560.49 | F6: =PFP!H9 -> 22989.1 | G6: =PFP!I9 -> 1.6953 | H6: 4 | J6: 4 | K6: 6 | L6: 4 | M6: 4 | N6: 6 | O6: 6 | P6: 4 | Q6: 4 | R6: 6
A7: =PFP!C10 -> P2 | B7: =PFP!D10 -> Engenheiro pleno (P8066) | C7: mês | D7: 48 | E7: =PFP!G10 -> 10307.29 | F7: =PFP!H10 -> 24341.7 | G7: =PFP!I10 -> 2.3616 | H7: 4 | I7: 2 | J7: 2 | K7: 6 | L7: 4 | M7: 4 | N7: 6 | O7: 6 | P7: 4 | Q7: 4 | R7: 6
A8: =PFP!C11 -> P3 | B8: =PFP!D11 -> Engenheiro júnior (P8065) | C8: mês | D8: 41 | E8: =PFP!G11 -> 9350 | F8: =PFP!H11 -> 22080.96 | G8: =PFP!I11 -> 2.3616 | J8: 1 | K8: 6 | L8: 4 | M8: 4 | N8: 6 | O8: 6 | P8: 4 | Q8: 4 | R8: 6
A9: =PFP!C12 -> T1 | B9: =PFP!D12 -> Técnico de projetos/obra (P8147) | C9: mês | D9: 55 | E9: =PFP!G12 -> 2894.21 | F9: =PFP!H12 -> 6834.97 | G9: =PFP!I12 -> 2.3616 | H9: 6 | I9: 4 | J9: 5 | K9: 6 | L9: 4 | M9: 4 | N9: 6 | O9: 6 | P9: 4 | Q9: 4 | R9: 6
A10: =PFP!C13 -> A1 | B10: =PFP!D13 -> Secretária (P8135) | C10: mês | D10: 15 | E10: =PFP!G13 -> 2204.93 | F10: =PFP!H13 -> 5207.16 | G10: =PFP!I13 -> 2.3616 | H10: 2 | I10: 1 | J10: 2 | K10: 1.5 | L10: 1 | M10: 1 | N10: 1.5 | O10: 1.5 | P10: 1 | Q10: 1 | R10: 1.5
A11: =PFP!C14 -> S1 | B11: =PFP!D14 -> Analista sênior | C11: mês | D11: 24 | E11: =PFP!G14 -> 6247.13 | F11: =PFP!H14 -> 14753.22 | G11: =PFP!I14 -> 2.3616 | H11: 2 | J11: 2 | K11: 3 | L11: 2 | M11: 2 | N11: 3 | O11: 3 | P11: 2 | Q11: 2 | R11: 3
A12: =PFP!C15 -> S2 | B12: =PFP!D15 -> Analista pleno | C12: mês | D12: 26 | E12: =PFP!G15 -> 3784.58 | F12: =PFP!H15 -> 8937.66 | G12: =PFP!I15 -> 2.3616 | H12: 2 | J12: 4 | K12: 3 | L12: 2 | M12: 2 | N12: 3 | O12: 3 | P12: 2 | Q12: 2 | R12: 3
A13: =PFP!C16 -> S3 | B13: =PFP!D16 -> Analista júnior | C13: mês | D13: 24 | E13: =PFP!G16 -> 3104.97 | F13: =PFP!H16 -> 7332.7 | G13: =PFP!I16 -> 2.3616 | J13: 4 | K13: 3 | L13: 2 | M13: 2 | N13: 3 | O13: 3 | P13: 2 | Q13: 2 | R13: 3
A14: =PFP!C17 -> ECA | B14: =PFP!D17 -> Encargos Comp. e Adicionais | C14: mês | D14: 295 | E14: =PFP!G17 -> 815.05 | F14: =PFP!H17 -> 1023.54 | G14: =PFP!I17 -> 1.2558 | H14: =SUM(H5:H13) -> 21 | I14: =SUM(I5:I13) -> 8 | J14: 26 | K14: 36 | L14: 24 | M14: 24 | N14: 36 | O14: 36 | P14: 24 | Q14: 24 | R14: 36
A15: =PFP!C18 -> AT1 | B15: =PFP!D18 -> Auxilio Transporte Analista junior | C15: mês | D15: 24 | E15: =PFP!G18 -> 0 | F15: =PFP!H18 -> 0 | G15: =PFP!I18 -> 1.2558 | H15: =H13 -> 0 | I15: =I13 -> 0 | J15: 4 | K15: 3 | L15: 2 | M15: 2 | N15: 3 | O15: 3 | P15: 2 | Q15: 2 | R15: 3
A16: =PFP!C19 -> AT2 | B16: =PFP!D19 -> Auxilio Transporte Técnicos | C16: mês | D16: 55 | E16: =PFP!G19 -> 0 | F16: =PFP!H19 -> 0 | G16: =PFP!I19 -> 1.2558 | H16: =H9 -> 6 | I16: =I9 -> 4 | J16: 5 | K16: 6 | L16: 4 | M16: 4 | N16: 6 | O16: 6 | P16: 4 | Q16: 4 | R16: 6
A17: =PFP!C20 -> AT3 | B17: =PFP!D20 -> Auxilio Transporte Secretária | C17: mês | D17: 15 | E17: =PFP!G20 -> 12.98308 | F17: =PFP!H20 -> 16.3 | G17: =PFP!I20 -> 1.2558 | H17: =H10 -> 2 | I17: =I10 -> 1 | J17: 2 | K17: 1.5 | L17: 1 | M17: 1 | N17: 1.5 | O17: 1.5 | P17: 1 | Q17: 1 | R17: 1.5
A18: =PFP!C21 -> V1 | B18: =PFP!D21 -> Diárias | C18: dia | D18: 520 | E18: =PFP!G21 -> 239 | F18: =PFP!H21 -> 300.14 | G18: =PFP!I21 -> 1.2558 | H18: =H4*5*4 -> 40 | J18: =J4*5*4 -> 80 | K18: =K4*5*4 -> 60 | L18: 40 | M18: 40 | N18: 60 | O18: 60 | P18: 40 | Q18: 40 | R18: 60
A19: =PFP!C22 -> V2 | B19: =PFP!D22 -> Pick-up Cab.dupla 2.8 4x4 Diesel | C19: un | D19: 130 | E19: =PFP!G22 -> 357.92 | F19: =PFP!H22 -> 449.48 | G19: =PFP!I22 -> 1.2558 | H19: =H18/4 -> 10 | J19: =J18/4 -> 20 | K19: =K18/4 -> 15 | L19: 10 | M19: 10 | N19: 15 | O19: 15 | P19: 10 | Q19: 10 | R19: 15
A20: =PFP!C23 -> V3 | B20: =PFP!D23 -> Passagens Aéreas (ida e volta) | C20: un | D20: 104 | E20: =PFP!G23 -> 1867.8 | F20: =PFP!H23 -> 2345.58 | G20: =PFP!I23 -> 1.2558 | H20: =H18/5 -> 8 | J20: =J18/5 -> 16 | K20: =K18/5 -> 12 | L20: 8 | M20: 8 | N20: 12 | O20: 12 | P20: 8 | Q20: 8 | R20: 12
A21: =PFP!C24 -> M1 | B21: =PFP!D24 -> Relatório Parcial | C21: un | D21: 33 | E21: =PFP!G24 -> 34.41245818 | F21: =PFP!H24 -> 43.22 | G21: =PFP!I24 -> 1.2558 | H21: 3 | I21: 3 | J21: 3 | K21: 3 | L21: 3 | M21: 3 | N21: 3 | O21: 3 | P21: 3 | Q21: 3 | R21: 3
A22: =PFP!C25 -> M2 | B22: =PFP!D25 -> Relatório Final | C22: un | D22: 33 | E22: =PFP!G25 -> 1525.911339 | F22: =PFP!H25 -> 1916.24 | G22: =PFP!I25 -> 1.2558 | H22: 3 | I22: 3 | J22: 3 | K22: 3 | L22: 3 | M22: 3 | N22: 3 | O22: 3 | P22: 3 | Q22: 3 | R22: 3
A23: =PFP!C26 -> TOP | B23: =PFP!D26 -> Total Serviços Cartográficos | C23: un | D23: 1 | E23: =PFP!G26 -> - | F23: =PFP!H26 -> 883147.32 | G23: =PFP!I26 -> - | I23: 1
A24: =PFP!C27 -> GEO | B24: =PFP!D27 -> Total Serviços Geotécnicos | C24: un | D24: 1 | E24: =PFP!G27 -> - | F24: =PFP!H27 -> 283390.15 | G24: =PFP!I27 -> - | I24: 1
A25: =PFP!C28 -> AMB | B25: =PFP!D28 -> Total Serviços Ambientais | C25: un | D25: 1 | E25: =PFP!G28 -> - | F25: =PFP!H28 -> 6184.92 | G25: =PFP!I28 -> - | I25: 1
A26: TOTAL | B26: VALOR TOTAL POR PRODUTO | C26: R$ | D26: =SUM(H26:R26) -> 6715234.94 | H26: =SUM(H5:H25*$F$5:$F$25) -> 373909.91 | I26: =SUM(I5:I25*$F$5:$F$25) -> 1291146.28 | J26: =SUM(J5:J25*$F$5:$F$25) -> 451171.81 | K26: =SUM(K5:K25*$F$5:$F$25) -> 688675.365 | L26: =SUM(L5:L25*$F$5:$F$25) -> 461076.37 | M26: =SUM(M5:M25*$F$5:$F$25) -> 461076.37 | N26: =SUM(N5:N25*$F$5:$F$25) -> 688675.365 | O26: =SUM(O5:O25*$F$5:$F$25) -> 688675.365 | P26: =SUM(P5:P25*$F$5:$F$25) -> 461076.37 | Q26: =SUM(Q5:Q25*$F$5:$F$25) -> 461076.37 | R26: =SUM(R5:R25*$F$5:$F$25) -> 688675.365
C27: % | D27: 0.99998 | H27: =ROUND(H26/$D$26,5) -> 0.05568 | I27: =ROUND(I26/$D$26,5) -> 0.19227 | J27: =ROUND(J26/$D$26,5) -> 0.06719 | K27: 0.10255 | L27: 0.06866 | M27: 0.06866 | N27: 0.10255 | O27: 0.10255 | P27: 0.06866 | Q27: 0.06866 | R27: 0.10255
A28: TOTAL | B28: VALOR DOS SUBPRODUTOS | C28: R$ | D28: 5372187.952 | H28: =H26*0.8 -> 299127.928 | I28: 1032917.024 | J28: =J26*0.8 -> 360937.448 | K28: 550940.292 | L28: 368861.096 | M28: 368861.096 | N28: 550940.292 | O28: 550940.292 | P28: 368861.096 | Q28: 368861.096 | R28: 550940.292
B29: VALOR DO PRODUTO CONSOLIDADO | C29: R$ | D29: 1343046.988 | H29: =H26*0.2 -> 74781.982 | I29: 258229.256 | J29: =J26*0.2 -> 90234.362 | K29: 137735.073 | L29: 92215.274 | M29: 92215.274 | N29: 137735.073 | O29: 137735.073 | P29: 92215.274 | Q29: 92215.274 | R29: 137735.073

Sheet CRO2_Pro-Mes
A1: CRONOGRAMA SIMPLIFICADO
A2: Cod1 | B2: Cod2 | C2: Produto/ Mês | D2: Soma | E2: 1 | F2: 2 | G2: 3 | H2: 4 | I2: 5 | J2: 6 | K2: 7 | L2: 8 | M2: 9 | N2: 10 | O2: 11 | P2: 12 | Q2: 13 | R2: 14 | S2: 15 | T2: 16 | U2: 17 | V2: 18 | W2: 19 | X2: 20
A3: EV | B3: E1 | C3: Estudo de Viabilidade | D3: =SUM(E3:X3) -> 2 | G3: 1 | H3: 1
A4: EB | B4: E2 | C4: Estudos Básicos | D4: 4 | E4: 1 | F4: 1 | G4: 1 | H4: 1
A5: EA | B5: E3 | C5: Estudos Ambientais | D5: 4 | H5: 1 | I5: 1 | J5: 1 | X5: 1
A6: LA | B6: LA | C6: Licenciamento Ambiental | D6: 2 | K6: x | L6: x
A7: PB | B7: T1 | C7: Captação Rio Guaju - ETA Piquiri | D7: 3 | M7: 1 | N7: 1 | O7: 1
A8: PB | B8: T2 | C8: ETA Piquiri - Montanhas | D8: 2 | O8: 1 | P8: 1
A9: PB | B9: T3 | C9: Montanhas - Nova Cruz | D9: 2 | P9: 1 | Q9: 1
A10: PB | B10: T4 | C10: Nova Cruz - Santo Antônio - Serrinha | D10: 3 | Q10: 1 | R10: 1 | S10: 1
A11: PB | B11: T5 | C11: Nova Cruz - Passa e Fica | D11: 3 | R11: 1 | S11: 1 | T11: 1
A12: PB | B12: T6 | C12: Passa e Fica - São José do Campestre | D12: 2 | T12: 1 | U12: 1
A13: PB | B13: T7 | C13: São José do Campestre - Tangará | D13: 2 | U13: 1 | V13: 1
A14: PB | B14: T8 | C14: Tangará - Santa Cruz | D14: 3 | V14: 1 | W14: 1 | X14: 1
